[Event "*** Titled Tuesday Blitz"]
[Site "Chess.com"]
[Date "2018.04.03"]
[Round "5"]
[White "Tramontanaaa"]
[Black "PulpanJ"]
[Result "0-1"]
[WhiteElo "2390"]
[BlackElo "2431"]
[TimeControl "180+2"]
[EndTime "14:08:10 PDT"]
[Termination "PulpanJ won by resignation"]

1. e4 {[%clk 0:03:01.9]} 1... e5 {[%clk 0:02:59.4]} 2. Nf3 {[%clk 0:03:01.1]}
2... Nc6 {[%clk 0:02:58.7]} 3. Bb5 {[%clk 0:03:01.9]} 3... Nf6 {[%clk
0:02:59.2]} 4. d3 {[%clk 0:02:59.8]} 4... Bc5 {[%clk 0:02:58]} 5. c3 {[%clk
0:02:56.1]} 5... d6 {[%clk 0:02:45.3]} 6. h3 {[%clk 0:02:54.7]} 6... O-O {[%clk
0:02:45.5]} 7. Nbd2 {[%clk 0:02:55.1]} 7... Ne7 {[%clk 0:02:44.5]} 8. Nf1 {[%clk
0:02:54.5]} 8... Ng6 {[%clk 0:02:40.8]} 9. g3 {[%clk 0:02:55.1]} 9... a5 {[%clk
0:02:27.8]} 10. a4 {[%clk 0:02:50.9]} 10... Be6 {[%clk 0:02:25.9]} 11. Ng5
{[%clk 0:02:49.3]} 11... Bc8 {[%clk 0:02:18.9]} 12. Be3 {[%clk 0:02:38.2]} 12...
Bxe3 {[%clk 0:01:39.3]} 13. Nxe3 {[%clk 0:02:38.3]} 13... c6 {[%clk 0:01:40.7]}
14. Bc4 {[%clk 0:02:38.5]} 14... d5 {[%clk 0:01:42]} 15. exd5 {[%clk 0:02:30.2]}
15... cxd5 {[%clk 0:01:43.6]} 16. Bb3 {[%clk 0:02:21]} 16... d4 {[%clk
0:01:33.6]} 17. Nc4 {[%clk 0:02:05]} 17... h6 {[%clk 0:01:25.4]} 18. Ne4 {[%clk
0:01:50]} 18... Nxe4 {[%clk 0:01:13.7]} 19. dxe4 {[%clk 0:01:50.8]} 19... Be6
{[%clk 0:00:59.9]} 20. cxd4 {[%clk 0:01:33.5]} 20... exd4 {[%clk 0:01:01.7]} 21.
Kf1 {[%clk 0:01:33.1]} 21... Qe7 {[%clk 0:00:38]} 22. Nd2 {[%clk 0:01:14.8]}
22... f5 {[%clk 0:00:25.7]} 23. exf5 {[%clk 0:01:04.3]} 23... Rxf5 {[%clk
0:00:25.8]} 24. Kg2 {[%clk 0:01:05.6]} 24... Raf8 {[%clk 0:00:25.1]} 25. Rf1
{[%clk 0:01:01.7]} 25... Qd7 {[%clk 0:00:21.8]} 26. Bxe6+ {[%clk 0:01:02.3]}
26... Qxe6 {[%clk 0:00:23.4]} 27. Qb3 {[%clk 0:01:03.7]} 27... Rd5 {[%clk
0:00:22.8]} 28. Rae1 {[%clk 0:01:01.1]} 28... Qc6 {[%clk 0:00:22.9]} 29. Rc1
{[%clk 0:00:56.3]} 29... Qd6 {[%clk 0:00:22.3]} 30. Ne4 {[%clk 0:00:55.7]} 30...
Qe6 {[%clk 0:00:22.1]} 31. Nc5 {[%clk 0:00:48.8]} 31... Qf7 {[%clk 0:00:16.7]}
32. f4 {[%clk 0:00:35.8]} 32... Kh8 {[%clk 0:00:16.2]} 33. Nd3 {[%clk
0:00:35.9]} 33... Nh4+ {[%clk 0:00:13.7]} 34. gxh4 {[%clk 0:00:35]} 34... Rg5+
{[%clk 0:00:14.3]} 35. hxg5 {[%clk 0:00:33.9]} 35... Qxb3 {[%clk 0:00:15.5]} 36.
Rf3 {[%clk 0:00:34.1]} 36... hxg5 {[%clk 0:00:15.2]} 37. f5 {[%clk 0:00:28.1]}
37... Qd5 {[%clk 0:00:15.4]} 38. Rc5 {[%clk 0:00:25.9]} 38... Qe4 {[%clk
0:00:16]} 39. Re5 {[%clk 0:00:22.9]} 39... Qc6 {[%clk 0:00:16.4]} 40. Re6 {[%clk
0:00:22]} 40... Qxa4 {[%clk 0:00:15.6]} 41. Ne5 {[%clk 0:00:20.9]} 41... Qc2+
{[%clk 0:00:11.7]} 42. Rf2 {[%clk 0:00:21.8]} 42... Qc8 {[%clk 0:00:12.4]} 43.
Ng6+ {[%clk 0:00:22.3]} 43... Kh7 {[%clk 0:00:13.8]} 44. Nxf8+ {[%clk
0:00:22.2]} 44... Qxf8 {[%clk 0:00:14.5]} 45. f6 {[%clk 0:00:22.7]} 45... gxf6
{[%clk 0:00:13.9]} 46. Rexf6 {[%clk 0:00:23.1]} 46... Qe8 {[%clk 0:00:11.9]} 47.
Rf7+ {[%clk 0:00:23]} 47... Kg8 {[%clk 0:00:13.1]} 48. R7f5 {[%clk 0:00:21]}
48... Qe7 {[%clk 0:00:14.1]} 49. Kg3 {[%clk 0:00:21.4]} 49... Kg7 {[%clk
0:00:13.6]} 50. Kg4 {[%clk 0:00:22.4]} 50... Kg6 {[%clk 0:00:14.7]} 51. Kg3
{[%clk 0:00:18.6]} 51... Qe3+ {[%clk 0:00:15]} 52. R5f3 {[%clk 0:00:19.1]} 52...
Qe5+ {[%clk 0:00:15.7]} 53. Kg4 {[%clk 0:00:17.9]} 53... b5 {[%clk 0:00:15.3]}
54. Rf8 {[%clk 0:00:17.5]} 54... Qe6+ {[%clk 0:00:16.4]} 55. R8f5 {[%clk
0:00:16.4]} 55... d3 {[%clk 0:00:14.1]} 0-1

[Event "*** Titled Tuesday Blitz"]
[Site "Chess.com"]
[Date "2018.04.03"]
[Round "5"]
[White "ViktorMatviishen"]
[Black "GM_dmitrij"]
[Result "0-1"]
[WhiteElo "2565"]
[BlackElo "2697"]
[TimeControl "180+2"]
[EndTime "14:08:12 PDT"]
[Termination "GM_dmitrij won by resignation"]

1. d4 {[%clk 0:02:59.8]} 1... d5 {[%clk 0:02:58.3]} 2. c4 {[%clk 0:03:00.7]}
2... dxc4 {[%clk 0:02:59.6]} 3. e4 {[%clk 0:03:01.7]} 3... Nf6 {[%clk
0:02:57.5]} 4. e5 {[%clk 0:03:02.2]} 4... Nd5 {[%clk 0:02:58.8]} 5. Bxc4 {[%clk
0:03:03.5]} 5... Nb6 {[%clk 0:03:00]} 6. Bd3 {[%clk 0:03:03.4]} 6... Nc6 {[%clk
0:02:59.5]} 7. Ne2 {[%clk 0:03:04.2]} 7... Bg4 {[%clk 0:02:59.8]} 8. Be3 {[%clk
0:02:57.3]} 8... e6 {[%clk 0:02:58]} 9. Nbc3 {[%clk 0:02:56.9]} 9... Nd5 {[%clk
0:02:41.4]} 10. O-O {[%clk 0:02:55.7]} 10... Be7 {[%clk 0:02:39.4]} 11. Nxd5
{[%clk 0:02:45.9]} 11... exd5 {[%clk 0:02:40.3]} 12. f3 {[%clk 0:02:45]} 12...
Be6 {[%clk 0:02:40.2]} 13. f4 {[%clk 0:02:43.7]} 13... f5 {[%clk 0:02:40.8]} 14.
exf6 {[%clk 0:02:41.1]} 14... Bxf6 {[%clk 0:02:41.2]} 15. f5 {[%clk 0:02:41.3]}
15... Bf7 {[%clk 0:02:41.2]} 16. Bb5 {[%clk 0:02:17.3]} 16... O-O {[%clk
0:02:40.7]} 17. Bxc6 {[%clk 0:02:18.5]} 17... bxc6 {[%clk 0:02:42.6]} 18. Qc2
{[%clk 0:02:10.7]} 18... Qd7 {[%clk 0:02:39.7]} 19. Rae1 {[%clk 0:02:00]} 19...
Rae8 {[%clk 0:02:39.2]} 20. Bf2 {[%clk 0:01:40.7]} 20... g6 {[%clk 0:02:30.4]}
21. Nf4 {[%clk 0:01:19.6]} 21... gxf5 {[%clk 0:02:27.3]} 22. Nd3 {[%clk
0:01:17.9]} 22... Qd6 {[%clk 0:02:09.5]} 23. Ne5 {[%clk 0:01:06.2]} 23... Bg6
{[%clk 0:01:59.3]} 24. Bg3 {[%clk 0:00:45.2]} 24... Qb4 {[%clk 0:01:45.6]} 25.
Qc3 {[%clk 0:00:41]} 25... Qxc3 {[%clk 0:01:16.8]} 26. bxc3 {[%clk 0:00:42.9]}
26... Re6 {[%clk 0:01:17.9]} 27. Nd7 {[%clk 0:00:35.3]} 27... Rxe1 {[%clk
0:00:57.3]} 28. Rxe1 {[%clk 0:00:37.2]} 28... Rf7 {[%clk 0:00:58.7]} 29. Re8+
{[%clk 0:00:31.4]} 29... Kg7 {[%clk 0:00:59.8]} 30. Nc5 {[%clk 0:00:23.3]} 30...
Re7 {[%clk 0:00:47.1]} 31. Rxe7+ {[%clk 0:00:24.2]} 31... Bxe7 {[%clk 0:00:49]}
32. Ne6+ {[%clk 0:00:24]} 32... Kf7 {[%clk 0:00:43]} 33. Nxc7 {[%clk 0:00:25.3]}
33... Bg5 {[%clk 0:00:44.5]} 34. Na6 {[%clk 0:00:16]} 34... f4 {[%clk
0:00:42.1]} 35. Bf2 {[%clk 0:00:15.6]} 35... Ke6 {[%clk 0:00:38.7]} 36. Nc5+
{[%clk 0:00:16.7]} 36... Kd6 {[%clk 0:00:39.4]} 37. Be1 {[%clk 0:00:17.2]} 37...
Bb1 {[%clk 0:00:35.4]} 38. a3 {[%clk 0:00:17.6]} 38... f3 {[%clk 0:00:25.6]} 39.
gxf3 {[%clk 0:00:18.3]} 39... Bc1 {[%clk 0:00:26.9]} 40. a4 {[%clk 0:00:18]}
40... Ke7 {[%clk 0:00:20.5]} 41. Kf2 {[%clk 0:00:16.8]} 41... Kf6 {[%clk
0:00:21.9]} 42. Kg3 {[%clk 0:00:17.7]} 42... Kf5 {[%clk 0:00:22.9]} 43. Kg2
{[%clk 0:00:18.1]} 43... Bc2 {[%clk 0:00:23.1]} 44. a5 {[%clk 0:00:18.6]} 44...
Bd1 {[%clk 0:00:21.5]} 45. Kg3 {[%clk 0:00:14.3]} 45... Bf4+ {[%clk 0:00:21]}
46. Kg2 {[%clk 0:00:15.4]} 46... Be2 {[%clk 0:00:21.9]} 47. Bg3 {[%clk
0:00:14.7]} 47... Bd2 {[%clk 0:00:21.9]} 48. Bb8 {[%clk 0:00:07.2]} 48... a6
{[%clk 0:00:21.1]} 49. Bc7 {[%clk 0:00:04.7]} 49... Bxc3 {[%clk 0:00:21.5]} 50.
Nb3 {[%clk 0:00:05.7]} 50... Bc4 {[%clk 0:00:21.7]} 51. Nc5 {[%clk 0:00:06.7]}
51... Bxd4 {[%clk 0:00:22.1]} 52. Nb7 {[%clk 0:00:07.8]} 52... Bc3 {[%clk
0:00:20.6]} 53. Bb6 {[%clk 0:00:08.4]} 53... Be5 {[%clk 0:00:20.1]} 54. Nd8
{[%clk 0:00:08.3]} 54... Bb5 {[%clk 0:00:20.4]} 55. Nf7 {[%clk 0:00:09.5]} 55...
Bf6 {[%clk 0:00:20]} 56. Nd6+ {[%clk 0:00:09.8]} 56... Ke6 {[%clk 0:00:21.4]}
57. Ne8 {[%clk 0:00:08.5]} 57... Be5 {[%clk 0:00:21.5]} 58. Nc7+ {[%clk
0:00:08.4]} 58... Kf5 {[%clk 0:00:20.7]} 59. Ne8 {[%clk 0:00:09.5]} 59... d4
{[%clk 0:00:20.5]} 60. Bc5 {[%clk 0:00:08.6]} 60... d3 {[%clk 0:00:20.2]} 61.
Be3 {[%clk 0:00:09.1]} 61... c5 {[%clk 0:00:20.6]} 62. Kf2 {[%clk 0:00:07.2]}
62... Bxe8 {[%clk 0:00:20.3]} 0-1

[Event "*** Titled Tuesday Blitz"]
[Site "Chess.com"]
[Date "2018.04.03"]
[Round "5"]
[White "nicegg"]
[Black "AndrewMcStone"]
[Result "1-0"]
[WhiteElo "1889"]
[BlackElo "2084"]
[TimeControl "180+2"]
[EndTime "14:08:43 PDT"]
[Termination "nicegg won by checkmate"]

1. e4 {[%clk 0:03:01.9]} 1... Nc6 {[%clk 0:02:59.6]} 2. d4 {[%clk 0:03:02.3]}
2... d5 {[%clk 0:02:59.5]} 3. e5 {[%clk 0:03:02.6]} 3... Bf5 {[%clk 0:03:00.1]}
4. g4 {[%clk 0:03:01.9]} 4... Be4 {[%clk 0:02:59.3]} 5. f3 {[%clk 0:03:02.2]}
5... Bg6 {[%clk 0:03:00.6]} 6. h4 {[%clk 0:03:02.9]} 6... h5 {[%clk 0:02:58]} 7.
e6 {[%clk 0:03:03.8]} 7... Qd6 {[%clk 0:02:35.5]} 8. exf7+ {[%clk 0:02:55.4]}
8... Bxf7 {[%clk 0:02:34.5]} 9. Ne2 {[%clk 0:02:54.3]} 9... e5 {[%clk
0:02:29.1]} 10. c3 {[%clk 0:02:39.5]} 10... O-O-O {[%clk 0:02:22.2]} 11. g5
{[%clk 0:02:29.6]} 11... Nge7 {[%clk 0:02:11.4]} 12. f4 {[%clk 0:02:15.2]} 12...
exd4 {[%clk 0:01:58.8]} 13. cxd4 {[%clk 0:02:00.3]} 13... Bg6 {[%clk 0:01:52.5]}
14. Ng3 {[%clk 0:01:28]} 14... Qb4+ {[%clk 0:01:32.1]} 15. Nc3 {[%clk
0:01:08.9]} 15... Qxd4 {[%clk 0:01:25.2]} 16. f5 {[%clk 0:00:58]} 16... Nxf5
{[%clk 0:01:07.9]} 17. Bh3 {[%clk 0:00:56.4]} 17... Qe5+ {[%clk 0:01:01.9]} 18.
Nce2 {[%clk 0:00:47.5]} 18... Kb8 {[%clk 0:00:36]} 19. Bf4 {[%clk 0:00:42.2]}
19... Bb4+ {[%clk 0:00:31.6]} 20. Kf2 {[%clk 0:00:32.6]} 20... Bc5+ {[%clk
0:00:30.1]} 21. Ke1 {[%clk 0:00:21.1]} 21... Qe6 {[%clk 0:00:16.4]} 22. Rf1
{[%clk 0:00:18.9]} 22... Rhf8 {[%clk 0:00:16.1]} 23. Rc1 {[%clk 0:00:07.4]}
23... Bb4+ {[%clk 0:00:16.7]} 24. Kf2 {[%clk 0:00:07.3]} 24... Ne3 {[%clk
0:00:12.5]} 25. Bxe6 {[%clk 0:00:06.6]} 25... Nxd1+ {[%clk 0:00:13.4]} 26. Rfxd1
{[%clk 0:00:07.3]} 26... Rde8 {[%clk 0:00:10.2]} 27. Bxd5 {[%clk 0:00:06.9]}
27... Bd6 {[%clk 0:00:10.6]} 28. Kf3 {[%clk 0:00:06]} 28... Ne5+ {[%clk
0:00:09]} 29. Kg2 {[%clk 0:00:05.7]} 29... Ng4 {[%clk 0:00:07.9]} 30. Bxd6
{[%clk 0:00:06.1]} 30... cxd6 {[%clk 0:00:07.7]} 31. Rd3 {[%clk 0:00:04.2]}
31... Ne3+ {[%clk 0:00:07.9]} 32. Kh3 {[%clk 0:00:04.2]} 32... Nxd5 {[%clk
0:00:04.8]} 33. Rxd5 {[%clk 0:00:04.7]} 33... Rf3 {[%clk 0:00:05.7]} 34. Rf1
{[%clk 0:00:04.3]} 34... Rfe3 {[%clk 0:00:05.2]} 35. Rf4 {[%clk 0:00:03.7]}
35... Bd3 {[%clk 0:00:05.8]} 36. Rfd4 {[%clk 0:00:03.3]} 36... Bxe2 {[%clk
0:00:06.5]} 37. Rxd6 {[%clk 0:00:02.1]} 37... Bg4+ {[%clk 0:00:07.3]} 38. Kg2
{[%clk 0:00:02.6]} 38... a6 {[%clk 0:00:07.2]} 39. Rd8+ {[%clk 0:00:03.2]} 39...
Rxd8 {[%clk 0:00:08.4]} 40. Rxd8+ {[%clk 0:00:03.9]} 40... Kc7 {[%clk
0:00:10.2]} 41. Rg8 {[%clk 0:00:04.9]} 41... Re7 {[%clk 0:00:10.2]} 42. g6
{[%clk 0:00:05.2]} 42... Be6 {[%clk 0:00:09.2]} 43. Rh8 {[%clk 0:00:05.8]} 43...
Bxa2 {[%clk 0:00:09.6]} 44. Nxh5 {[%clk 0:00:05.9]} 44... Bd5+ {[%clk
0:00:10.2]} 45. Kg3 {[%clk 0:00:06.2]} 45... Be4 {[%clk 0:00:09.9]} 46. Rh7
{[%clk 0:00:04.9]} 46... Bxg6 {[%clk 0:00:10.3]} 47. Rxg7 {[%clk 0:00:05.7]}
47... Rxg7 {[%clk 0:00:10.1]} 48. Nxg7 {[%clk 0:00:06.6]} 48... a5 {[%clk
0:00:10.6]} 49. h5 {[%clk 0:00:07.8]} 49... Bh7 {[%clk 0:00:11.2]} 50. Kf4
{[%clk 0:00:08.3]} 50... Kc6 {[%clk 0:00:11.5]} 51. Ke5 {[%clk 0:00:08.9]} 51...
Kc5 {[%clk 0:00:12]} 52. Ne6+ {[%clk 0:00:10]} 52... Kc4 {[%clk 0:00:12.9]} 53.
Ng5 {[%clk 0:00:10.8]} 53... Bd3 {[%clk 0:00:11.3]} 54. h6 {[%clk 0:00:10.5]}
54... Bg6 {[%clk 0:00:10.8]} 55. Kf6 {[%clk 0:00:11]} 55... Bc2 {[%clk 0:00:11]}
56. Ke5 {[%clk 0:00:12.1]} 56... b5 {[%clk 0:00:11.2]} 57. Ne4 {[%clk
0:00:12.4]} 57... a4 {[%clk 0:00:06.5]} 58. h7 {[%clk 0:00:13.4]} 58... b4
{[%clk 0:00:06.5]} 59. h8=Q {[%clk 0:00:14.3]} 59... a3 {[%clk 0:00:07.8]} 60.
Qg8+ {[%clk 0:00:15.7]} 60... Kd3 {[%clk 0:00:07.2]} 61. bxa3 {[%clk 0:00:16.7]}
61... b3 {[%clk 0:00:07.9]} 62. Qd8+ {[%clk 0:00:17.6]} 62... Ke3 {[%clk
0:00:08.1]} 63. Qd4+ {[%clk 0:00:18.6]} 63... Kf3 {[%clk 0:00:08.8]} 64. Nc3
{[%clk 0:00:17.8]} 64... b2 {[%clk 0:00:08.6]} 65. Qd5+ {[%clk 0:00:16.9]} 65...
Kf2 {[%clk 0:00:08.1]} 66. Kd4 {[%clk 0:00:17.8]} 66... Ke1 {[%clk 0:00:04.3]}
67. Qh1+ {[%clk 0:00:17.9]} 67... Kd2 {[%clk 0:00:05]} 68. Qg2+ {[%clk
0:00:18.8]} 68... Kc1 {[%clk 0:00:05.4]} 69. Qf1+ {[%clk 0:00:19.4]} 69... Kd2
{[%clk 0:00:05.6]} 70. Qe2+ {[%clk 0:00:20.4]} 70... Kc1 {[%clk 0:00:06.7]} 71.
Qe1+ {[%clk 0:00:21.4]} 71... Bd1 {[%clk 0:00:07.5]} 72. Qxd1# {[%clk
0:00:22.5]} 1-0

[Event "*** Titled Tuesday Blitz"]
[Site "Chess.com"]
[Date "2018.04.03"]
[Round "5"]
[White "Caisachess"]
[Black "chesstatour"]
[Result "0-1"]
[WhiteElo "2202"]
[BlackElo "1984"]
[TimeControl "180+2"]
[EndTime "14:08:56 PDT"]
[Termination "chesstatour won on time"]

1. e4 {[%clk 0:03:01.9]} 1... c6 {[%clk 0:03:00.4]} 2. d4 {[%clk 0:03:01.9]}
2... d5 {[%clk 0:03:02.3]} 3. exd5 {[%clk 0:03:03.1]} 3... cxd5 {[%clk
0:03:04.1]} 4. c4 {[%clk 0:03:04.5]} 4... Nf6 {[%clk 0:03:04.5]} 5. Nc3 {[%clk
0:03:05.4]} 5... Nc6 {[%clk 0:03:05.3]} 6. Nf3 {[%clk 0:03:06.4]} 6... Bg4
{[%clk 0:02:57.8]} 7. cxd5 {[%clk 0:02:59.9]} 7... Nxd5 {[%clk 0:02:56.4]} 8.
Qb3 {[%clk 0:02:59.6]} 8... Bxf3 {[%clk 0:02:57.3]} 9. gxf3 {[%clk 0:02:54.3]}
9... e6 {[%clk 0:02:58.4]} 10. Qxb7 {[%clk 0:02:50.7]} 10... Nxd4 {[%clk
0:02:58.5]} 11. Bb5+ {[%clk 0:02:46.8]} 11... Nxb5 {[%clk 0:02:58.9]} 12. Qxb5+
{[%clk 0:02:46.8]} 12... Qd7 {[%clk 0:02:43.7]} 13. Nxd5 {[%clk 0:02:46.8]}
13... exd5 {[%clk 0:02:41.6]} 14. Qxd7+ {[%clk 0:02:46.3]} 14... Kxd7 {[%clk
0:02:42.5]} 15. Be3 {[%clk 0:02:47.9]} 15... Bb4+ {[%clk 0:02:41.2]} 16. Ke2
{[%clk 0:02:46.2]} 16... Rhc8 {[%clk 0:02:02.4]} 17. Rac1 {[%clk 0:02:41.9]}
17... a5 {[%clk 0:02:02]} 18. Rhg1 {[%clk 0:02:37.8]} 18... g6 {[%clk 0:02:01]}
19. Kd3 {[%clk 0:02:35.4]} 19... Ke6 {[%clk 0:01:56.3]} 20. Bd4 {[%clk 0:02:35]}
20... Rxc1 {[%clk 0:01:31.6]} 21. Rxc1 {[%clk 0:02:34.3]} 21... Ra6 {[%clk
0:01:10.8]} 22. a3 {[%clk 0:02:29.5]} 22... Bd6 {[%clk 0:01:08.2]} 23. h3 {[%clk
0:02:30.4]} 23... Kd7 {[%clk 0:00:59]} 24. Bc5 {[%clk 0:02:21.7]} 24... Bxc5
{[%clk 0:00:53.6]} 25. Rxc5 {[%clk 0:02:21.8]} 25... Kd6 {[%clk 0:00:54.7]} 26.
Kd4 {[%clk 0:02:18.5]} 26... Rb6 {[%clk 0:00:39]} 27. Rxd5+ {[%clk 0:02:15.5]}
27... Ke6 {[%clk 0:00:39.8]} 28. Re5+ {[%clk 0:02:16.6]} 28... Kf6 {[%clk
0:00:37.2]} 29. Re2 {[%clk 0:02:16.4]} 29... Kf5 {[%clk 0:00:32.7]} 30. Kc3
{[%clk 0:02:08.4]} 30... a4 {[%clk 0:00:31.5]} 31. Rd2 {[%clk 0:01:45.3]} 31...
Rb3+ {[%clk 0:00:28.4]} 32. Kc4 {[%clk 0:01:45.7]} 32... Kf4 {[%clk 0:00:16.6]}
33. Rd7 {[%clk 0:01:36.3]} 33... f5 {[%clk 0:00:14.4]} 34. Ra7 {[%clk
0:01:33.5]} 34... Rxb2 {[%clk 0:00:14]} 35. Rxh7 {[%clk 0:01:27.9]} 35... Rb3
{[%clk 0:00:12.1]} 36. Rg7 {[%clk 0:01:27.6]} 36... Rxa3 {[%clk 0:00:11.9]} 37.
Rxg6 {[%clk 0:01:28.6]} 37... Rxf3 {[%clk 0:00:13.4]} 38. h4 {[%clk 0:01:25.7]}
38... a3 {[%clk 0:00:12.3]} 39. Kb4 {[%clk 0:01:25.1]} 39... a2 {[%clk
0:00:12.3]} 40. Ra6 {[%clk 0:01:25.1]} 40... Rxf2 {[%clk 0:00:13.2]} 41. h5
{[%clk 0:01:26]} 41... Kg5 {[%clk 0:00:12.5]} 42. h6 {[%clk 0:01:26.3]} 42...
Rh2 {[%clk 0:00:13]} 43. Kc4 {[%clk 0:01:09]} 43... Rxh6 {[%clk 0:00:12.4]} 44.
Rxa2 {[%clk 0:01:07.2]} 44... Kf4 {[%clk 0:00:12.5]} 45. Kd3 {[%clk 0:01:04.7]}
45... Rh3+ {[%clk 0:00:12]} 46. Kd4 {[%clk 0:01:04.8]} 46... Kg4 {[%clk
0:00:08.2]} 47. Ra8 {[%clk 0:01:01.1]} 47... f4 {[%clk 0:00:07.9]} 48. Rg8+
{[%clk 0:01:01.1]} 48... Kf3 {[%clk 0:00:08.9]} 49. Rf8 {[%clk 0:00:57]} 49...
Rh1 {[%clk 0:00:07.5]} 50. Rf7 {[%clk 0:00:48.1]} 50... Rd1+ {[%clk 0:00:07.6]}
51. Ke5 {[%clk 0:00:49.1]} 51... Re1+ {[%clk 0:00:08.6]} 52. Kd4 {[%clk
0:00:49.5]} 52... Re4+ {[%clk 0:00:06.5]} 53. Kd3 {[%clk 0:00:50.1]} 53... Re3+
{[%clk 0:00:06.1]} 54. Kd2 {[%clk 0:00:50.4]} 54... Re8 {[%clk 0:00:05.5]} 55.
Rf6 {[%clk 0:00:45.7]} 55... Kg3 {[%clk 0:00:05.9]} 56. Rg6+ {[%clk 0:00:45.1]}
56... Kf2 {[%clk 0:00:07.1]} 57. Rf6 {[%clk 0:00:42.6]} 57... f3 {[%clk
0:00:08.1]} 58. Rd6 {[%clk 0:00:38]} 58... Kg2 {[%clk 0:00:07.3]} 59. Rg6+
{[%clk 0:00:38.4]} 59... Kf1 {[%clk 0:00:08]} 60. Rf6 {[%clk 0:00:36.9]} 60...
f2 {[%clk 0:00:08.9]} 61. Kd3 {[%clk 0:00:36.7]} 61... Re1 {[%clk 0:00:05.5]}
62. Kd2 {[%clk 0:00:36.1]} 62... Kg1 {[%clk 0:00:05.5]} 63. Rg6+ {[%clk
0:00:32.9]} 63... Kh2 {[%clk 0:00:06.5]} 64. Rh6+ {[%clk 0:00:34]} 64... Kg3
{[%clk 0:00:07.6]} 65. Rg6+ {[%clk 0:00:33.9]} 65... Kh4 {[%clk 0:00:08.8]} 0-1

[Event "*** Titled Tuesday Blitz"]
[Site "Chess.com"]
[Date "2018.04.03"]
[Round "5"]
[White "Karina_Oparina"]
[Black "abubakrtagelsir"]
[Result "0-1"]
[WhiteElo "2142"]
[BlackElo "2267"]
[TimeControl "180+2"]
[EndTime "14:08:58 PDT"]
[Termination "abubakrtagelsir won by resignation"]

1. d4 {[%clk 0:03:00.5]} 1... d5 {[%clk 0:02:59.8]} 2. c4 {[%clk 0:02:59.8]}
2... c6 {[%clk 0:03:00.1]} 3. Nf3 {[%clk 0:02:57.1]} 3... Nf6 {[%clk 0:02:59.3]}
4. e3 {[%clk 0:02:55.2]} 4... Bf5 {[%clk 0:02:58.4]} 5. Nc3 {[%clk 0:02:55.2]}
5... e6 {[%clk 0:02:58.8]} 6. Nh4 {[%clk 0:02:54]} 6... Bg4 {[%clk 0:02:58.7]}
7. f3 {[%clk 0:02:48.5]} 7... Bh5 {[%clk 0:02:58.7]} 8. Qb3 {[%clk 0:02:22.8]}
8... Qb6 {[%clk 0:02:37.5]} 9. Qxb6 {[%clk 0:02:08.5]} 9... axb6 {[%clk
0:02:36]} 10. e4 {[%clk 0:02:09.4]} 10... Be7 {[%clk 0:02:33.2]} 11. g3 {[%clk
0:02:02.2]} 11... Nfd7 {[%clk 0:02:31.1]} 12. Be2 {[%clk 0:01:48.6]} 12... Bxh4
{[%clk 0:02:29]} 13. gxh4 {[%clk 0:01:48.7]} 13... dxc4 {[%clk 0:02:29.9]} 14.
Rg1 {[%clk 0:01:41.8]} 14... g6 {[%clk 0:02:26.3]} 15. Bg5 {[%clk 0:01:30.4]}
15... b5 {[%clk 0:02:23.2]} 16. e5 {[%clk 0:01:29.8]} 16... h6 {[%clk
0:02:16.7]} 17. Bf4 {[%clk 0:01:24.9]} 17... Na6 {[%clk 0:02:12]} 18. a4 {[%clk
0:01:24.4]} 18... Nb4 {[%clk 0:02:11.9]} 19. Kd2 {[%clk 0:01:24.1]} 19... Nd5
{[%clk 0:01:54.1]} 20. axb5 {[%clk 0:01:15.2]} 20... Ke7 {[%clk 0:01:51]} 21.
Rxa8 {[%clk 0:01:08]} 21... Rxa8 {[%clk 0:01:46.1]} 22. Bxh6 {[%clk 0:01:08.6]}
22... c5 {[%clk 0:01:33.6]} 23. Bg5+ {[%clk 0:01:07.8]} 23... Ke8 {[%clk
0:01:30]} 24. dxc5 {[%clk 0:01:02.9]} 24... Nxc5 {[%clk 0:01:25.4]} 25. Nxd5
{[%clk 0:00:50.5]} 25... exd5 {[%clk 0:01:22.4]} 26. Be3 {[%clk 0:00:49.8]}
26... Ne6 {[%clk 0:01:20.3]} 27. Bb6 {[%clk 0:00:39]} 27... Ra2 {[%clk
0:00:38.9]} 28. Kc2 {[%clk 0:00:37]} 28... Nf4 {[%clk 0:00:34.7]} 29. Bd1 {[%clk
0:00:21.6]} 29... Nd3 {[%clk 0:00:35.1]} 30. Bd4 {[%clk 0:00:21.9]} 30... Ra5
{[%clk 0:00:34]} 31. Be2 {[%clk 0:00:17.6]} 31... Rxb5 {[%clk 0:00:32.7]} 32.
Bxd3 {[%clk 0:00:18.3]} 32... cxd3+ {[%clk 0:00:33.4]} 33. Kxd3 {[%clk
0:00:18.8]} 33... Bxf3 {[%clk 0:00:33.9]} 34. Rc1 {[%clk 0:00:18.6]} 34... Rb3+
{[%clk 0:00:30]} 35. Kd2 {[%clk 0:00:18.2]} 35... Be4 {[%clk 0:00:30.1]} 36. Rc3
{[%clk 0:00:18.1]} 36... Rxb2+ {[%clk 0:00:18.6]} 37. Ke3 {[%clk 0:00:19.3]}
37... Rxh2 {[%clk 0:00:17.8]} 38. Rc8+ {[%clk 0:00:17.5]} 38... Kd7 {[%clk
0:00:18.7]} 39. Rf8 {[%clk 0:00:18.2]} 39... Ke6 {[%clk 0:00:18.8]} 40. Rd8
{[%clk 0:00:12.3]} 40... Kf5 {[%clk 0:00:18.4]} 41. Rd7 {[%clk 0:00:10.5]} 41...
Rh3+ {[%clk 0:00:18.5]} 42. Kf2 {[%clk 0:00:09.6]} 42... Rf3+ {[%clk 0:00:17.2]}
43. Ke2 {[%clk 0:00:10.1]} 43... Kg4 {[%clk 0:00:17.7]} 44. Bf2 {[%clk
0:00:09.4]} 44... Bd3+ {[%clk 0:00:17.1]} 45. Ke1 {[%clk 0:00:10]} 45... Be4
{[%clk 0:00:16]} 46. Rxb7 {[%clk 0:00:10.1]} 46... Rf5 {[%clk 0:00:15.3]} 47.
Re7 {[%clk 0:00:09.9]} 47... Kf3 {[%clk 0:00:10.8]} 48. Rb7 {[%clk 0:00:08.2]}
48... Kg4 {[%clk 0:00:07.4]} 49. Re7 {[%clk 0:00:08.5]} 49... Rf3 {[%clk
0:00:08.2]} 50. Ra7 {[%clk 0:00:07.9]} 50... Bd3 {[%clk 0:00:07.7]} 51. Ra4+
{[%clk 0:00:08]} 51... Kh3 {[%clk 0:00:07.6]} 52. Rd4 {[%clk 0:00:08.6]} 52...
Be4 {[%clk 0:00:07.8]} 53. Ra4 {[%clk 0:00:08.9]} 53... Kg2 {[%clk 0:00:08.7]}
54. Bd4 {[%clk 0:00:08.8]} 54... Rf1+ {[%clk 0:00:07.8]} 55. Ke2 {[%clk
0:00:09.3]} 55... Rf3 {[%clk 0:00:06.3]} 56. Ra7 {[%clk 0:00:09.1]} 56... Bd3+
{[%clk 0:00:05.5]} 57. Kd2 {[%clk 0:00:09.6]} 57... Be4 {[%clk 0:00:06.3]} 58.
Ke2 {[%clk 0:00:10.2]} 58... Kg3 {[%clk 0:00:07]} 59. Re7 {[%clk 0:00:09.5]}
59... Kxh4 {[%clk 0:00:07.1]} 60. e6 {[%clk 0:00:09.8]} 60... fxe6 {[%clk
0:00:07.4]} 61. Rxe6 {[%clk 0:00:10.7]} 61... Kg4 {[%clk 0:00:08.1]} 62. Re8
{[%clk 0:00:09.9]} 62... Rf7 {[%clk 0:00:04.7]} 63. Re6 {[%clk 0:00:09.8]} 63...
g5 {[%clk 0:00:05.1]} 64. Be3 {[%clk 0:00:10.4]} 64... Rf5 {[%clk 0:00:05.4]}
65. Rg6 {[%clk 0:00:10.4]} 65... Kh4 {[%clk 0:00:06.4]} 66. Rh6+ {[%clk
0:00:11.2]} 66... Kg3 {[%clk 0:00:07.3]} 67. Rh5 {[%clk 0:00:11.4]} 67... Bf3+
{[%clk 0:00:05.8]} 0-1